Cogmind - Beta 14 *** ADVENTURER MODE // 2024.08.09 @ 23:38:28 Player: AnotherZach Result: Destroyed by H-55 Commando with Assault Rifle Performance ------------- Evolutions (0) 0 Regions Visited (2) 400 Robots Destroyed (31) 155 Value Destroyed (901) 901 Prototype IDs (0) 0 Alien Tech Used (0) 0 Bonus (0) 0 TOTAL SCORE: 1456 Bonus ------- None Cogmind --------- Core Integrity 0/250 Matter 3/300 Energy 265/265 System Corruption 1% Temperature Cool (0) Movement Rolling (125) Ox3 Location -10/Subcaves Parts ------- > --- POWER (1) -------- Reinforced Ion Engine > --- PROPULSION (2) --- Wheel > --- UTILITY (2) ------ Large Storage Unit Targeting Computer > --- WEAPON (2) ------- Assault Rifle Hammer > --- INVENTORY (15) --- Reinforced Ion Engine Subdweller Power Source Compact Wheel Medium Matter Pod (0) Medium Matter Pod (0) Seismic Detector Light Armor Plating Medium Armor Plating Cobbler Unit Assault Rifle Improved Light Cannon Battle Cannon Peak State ------------ > --- POWER ------------ Reinforced Ion Engine > --- PROPULSION ------- Light Treads Light Treads > --- UTILITY ---------- Small Storage Unit Targeting Computer > --- WEAPON ----------- Improved Light Cannon Improved Light Cannon > --- INVENTORY -------- Light Ion Engine Reinforced Ion Engine Wheel Compact Wheel Seismic Detector Light Armor Plating Medium Armor Plating Light Assault Rifle [Rating: 11] Favorites ----------- Power Reinforced Ion Engine Engine Reinforced Ion Engine Propulsion Light Treads Treads Light Treads Wheel Wheel Utility Targeting Computer Device Seismic Detector Storage Large Storage Unit Processor Targeting Computer Weapon Improved Light Cannon Ballistic Gun Assault Rifle Ballistic Cannon Improved Light Cannon Impact Weapon Hammer Build | -11 -10 -10 ------- Run | Yrd Mat Sub Slots Evolved . | . . . Power . | . . . Propulsion . | . . . Utility . | . . . Weapon . | . . . Parts Attached 24 | 7 10 7 Power 2 | 1 1 . Engine 2 | 1 1 . Core . | . . . Reactor . | . . . Propulsion 7 | 2 2 3 Treads 3 | . 2 1 Leg . | . . . Wheel 4 | 2 . 2 Hover . | . . . Flight . | . . . Utility 4 | 2 2 . Device 1 | 1 . . Storage 2 | 1 1 . Processor 1 | . 1 . Hackware . | . . . Protection . | . . . Artifact . | . . . Weapon 11 | 2 5 4 Energy Gun . | . . . Energy Cannon . | . . . Ballistic Gun 3 | 2 . 1 Ballistic Cannon 6 | . 4 2 Launcher . | . . . Special Weapon . | . . . Impact Weapon 2 | . 1 1 Slashing Weapon . | . . . Piercing Weapon . | . . . Special Melee Weapon . | . . . Unidentified Prototypes . | . . . Parts Lost 6 | . . 6 Power . | . . . Propulsion 4 | . . 4 Utility . | . . . Weapon 2 | . . 2 Highest Loss Streak 3 | . . 3 To Critical Strikes 1 | . . 1 Average Slot Usage (%) 99 | . 100 99 Engine 14 | . 14 14 Treads 24 | . 24 24 Wheel 3 | . 3 3 Storage 14 | . 14 14 Processor 13 | . 13 14 Ballistic Gun 2 | . 2 2 Ballistic Cannon 23 | . 22 25 Impact Weapon 1 | . 2 . Peak Build Rating 11 | 7 11 11 Average Rating 10 | 4 10 10 On Entrance 6 | . 7 11 Naked Turns . | . . . Heaviest Build 38 | 12 38 38 Greatest Support 40 | 20 40 40 Greatest Overweight (x) 3 | . . 3 Average Overweight (x) . | . . . Largest Inventory Capacity 15 | 8 15 15 Average Capacity 13 | 6 12 15 Most Carried 15 | 7 14 15 Average Carried 12 | 3 11 14 Final Capacity 15 | 8 15 15 Final Carried 14 | 6 14 13 Class Distribution -------------------- 100% | Mutant Dominant Class ---------------- Mutant | -10/Materials Mutant | -10/Subcaves Resources | -11 -10 -10 ----------- Run | Yrd Mat Sub Matter Collected 792 | 240 327 225 Remotely . | . . . Salvage Created 949 | 139 631 179 Parts 51 | 5 36 10 Haulers Intercepted 2 | . 2 . Recyclers Shooed 1 | . 1 . Parts Field Recycled . | . . . Retrieved Matter . | . . . Parts Self-Destructed 11 | . . 11 Prevented . | . . . Kills | -11 -10 -10 ------- Run | Yrd Mat Sub Combat Hostiles Destroyed 21 | . 15 6 Guns 2 | . 1 1 Cannons 19 | . 14 5 Classes Destroyed 11 | 2 5 4 Worker 1 | . 1 . Builder 1 | . 1 . Tunneler 2 | 2 . . Hauler 2 | . 2 . Recycler 1 | 1 . . Watcher 3 | . 3 . Grunt 17 | . 15 2 Programmer 1 | . . 1 Artisan 1 | . . 1 Cobbler 1 | . . 1 Subdweller 3 | . . 3 Best Kill Streak 8 | 3 8 2 Combat Bots Only 4 | . 4 2 Max Kills in Single Turn 1 | 1 1 1 Gunslinging . | . . . Exploded . | . . . Melee . | . . . Uniques/NPCs Destroyed . | . . . Combat | -11 -10 -10 -------- Run | Yrd Mat Sub Hostile Shots Fired 145 | . 55 90 Missed 36 | . 19 17 Damage Taken 1494 | . 353 1141 Core 256 | . 63 193 Absorbed by Shields . | . . . Ignored by Resistances 425 | . 108 317 Core Remaining (%) 100 | 100 . . Volleys Fired 98 | 8 47 43 Largest 2 | 2 2 2 Hottest 78 | 40 78 78 Shots Fired 182 | 16 80 86 Gun 44 | 16 16 12 Cannon 138 | . 64 74 Launcher . | . . . Special . | . . . Kinetic 182 | 16 80 86 Thermal . | . . . Explosive . | . . . Electromagnetic . | . . . Robot Hit Streak 30 | 8 17 30 Robot Miss Streak 2 | 1 2 1 Penetration Max . | . . . Secondary Targets . | . . . Shots Hit Robots 144 | 12 58 74 Core Hits 51 | 6 27 18 Critical Kills . | . . . Critical Parts Destroyed 1 | . . 1 Critical Strikes 2 | . . 2 Blast 1 | . . 1 Smash 1 | . . 1 Melee Attacks 8 | . 5 3 Impact 8 | . 5 3 Slashing . | . . . Piercing . | . . . Sneak Attacks . | . . . Combat Hostiles . | . . . Follow-up Attacks . | . . . Damage Inflicted 2585 | 122 1190 1273 Guns 386 | 122 128 136 Cannons 2164 | . 1062 1102 Explosions . | . . . Melee 35 | . . 35 Ramming . | . . . Kinetic 2550 | 122 1190 1238 Thermal . | . . . Explosive . | . . . Electromagnetic . | . . . Impact 35 | . . 35 Slashing . | . . . Piercing . | . . . Highest Corruption 1 | . 1 1 Average Corruption 1 | . 1 1 Corruption Purged . | . . . Corruption Blocked . | . . . Effects 16 | . 9 7 Message Errors 2 | . 1 1 Matter Fused 2 | . 2 . Heat Flow Errors 3 | . 2 1 Energy Discharges 4 | . 3 1 Data Loss (minor) 2 | . 1 1 Data Loss (major) 3 | . . 3 Overload Shots . | . . . Overflow Damage 18 | . . 18 Projectiles . | . . . Explosions . | . . . Melee 18 | . . 18 Knockbacks 21 | . 9 12 Impact . | . . . Kinetic 20 | . 8 12 Secondary 1 | . 1 . Self-Inflicted Damage . | . . . Shots . | . . . Rammed . | . . . Targets Rammed . | . . . Kicked . | . . . Crushed . | . . . Highest Temperature 378 | . 378 250 Average Temperature 94 | . 92 128 Received Heat Transfer 345 | . 282 63 Siege Activations . | . . . Robots Corrupted . | . . . Combat Hostiles . | . . . Parts Fried . | . . . Impact Corruptions 1 | . . 1 Robots Melted . | . . . Combat Hostiles . | . . . Parts Melted . | . . . Heat Transferred . | . . . Parts Sabotaged . | . . . Parts Stolen . | . . . Parts Stripped . | . . . Power Chain Reactions . | . . . Alert | -11 -10 -10 ------- Run | Yrd Mat Sub Peak Influence 214 | 15 214 . Initial 8 | . 8 . Average 100 | 4 106 . Maximum Alert Level 1 | . 1 . Low Security (%) 96 | 100 96 . Level 1 3 | . 3 . Level 2 . | . . . Level 3 . | . . . Level 4 . | . . . Level 5 . | . . . High Security . | . . . Max Security . | . . . Squads Dispatched 2 | . 2 . Investigation 2 | . 2 . Extermination . | . . . Reinforcement . | . . . Assault . | . . . Garrison . | . . . Intercept . | . . . Searches Triggered . | . . . Construction Impeded . | . . . Haulers Reinforced . | . . . Active Scanning Responses . | . . . Cargo Convoy Interrupts . | . . . Stealth | -11 -10 -10 --------- Run | Yrd Mat Sub Distress Signals . | . . . Communications Jammed . | . . . Distress Signals . | . . . Times Spotted 26 | . 17 9 Peak Tracking Total 4 | . 4 3 Tactical Retreats 1 | . 1 . Traps | -11 -10 -10 ------- Run | Yrd Mat Sub Traps Triggered 2 | . 2 . Indirectly . | . . . Trap Hack Attempts . | . . . Triggered . | . . . Disarmed . | . . . Reprogrammed . | . . . Reused . | . . . Traps Extracted . | . . . Installed . | . . . Triggered . | . . . Machines | -11 -10 -10 ---------- Run | Yrd Mat Sub Machines Disabled . | . . . Max in Single Turn . | . . . Machines Repaired . | . . . Machines Dismantled . | . . . Machines Sabotaged . | . . . Overloaded Fab Kills . | . . . Hacking | -11 -10 -10 --------- Run | Yrd Mat Sub Machines Accessed 7 | . 7 . Terminals 7 | . 7 . Fabricators . | . . . Repair Stations . | . . . Recycling Units . | . . . Scanalyzers . | . . . Garrison Access . | . . . Total Hacks 24 | . 24 . Successful 13 | . 13 . Failed 10 | . 10 . Catastrophic . | . . . Database Lockouts 1 | . 1 . Manual 22 | . 22 . Terminals 24 | . 24 . Fabricators . | . . . Repair Stations . | . . . Recycling Units . | . . . Scanalyzers . | . . . Garrison Access . | . . . Terminal Hacks 3 | . 3 . Robot Schematic 1 | . 1 . Robot Analysis 2 | . 2 . Fabricator Hacks . | . . . Repair Station Hacks . | . . . Recycling Unit Hacks . | . . . Scanalyzer . | . . . Garrison Access Hacks . | . . . Unauthorized Hacks 10 | . 10 . Terminals 10 | . 10 . Botnet 3 | . 3 . Skim 7 | . 7 . Fabricators . | . . . Repair Stations . | . . . Recycling Units . | . . . Scanalyzers . | . . . Garrison Access . | . . . Data Cores Recovered . | . . . Used . | . . . Hacking Detections 6 | . 6 . Full Trace Events 3 | . 3 . Feedback Events . | . . . Feedback Blocked . | . . . Robot Schematics Acquired 1 | . 1 . Robots Built . | . . . Authchips . | . . . Time . | . . . Total Robot Build Rating . | . . . Part Schematics Acquired . | . . . Parts Built . | . . . Authchips . | . . . Time . | . . . Total Part Build Rating . | . . . Parts Repaired . | . . . Time . | . . . Parts Recycled . | . . . Recycled Matter . | . . . Retrieved Matter . | . . . Retrieved Components . | . . . Parts Scanalyzed . | . . . Part Schematics Acquired . | . . . Parts Damaged . | . . . Bothacking | -11 -10 -10 ------------ Run | Yrd Mat Sub Used RIF Installer . | . . . Robots Hacked . | . . . Non-combat . | . . . Combat . | . . . Robot Hacks Applied . | . . . Relay Couplers Released . | . . . Fabnet Peak Effective % . | . . . Robots Rewired . | . . . Allies Hacked . | . . . Hacks Repelled . | . . . Allies | -11 -10 -10 -------- Run | Yrd Mat Sub Total Allies . | . . . Largest Group . | . . . Highest-Rated Group . | . . . Highest-Rated Ally . | . . . Total Orders . | . . . Ally Attacks . | . . . Total Damage . | . . . Kills . | . . . Allies Corrupted . | . . . Allies Melted . | . . . Intel | -11 -10 -10 ------- Run | Yrd Mat Sub Robot Analysis Total 2 | . 2 . Derelict Logs Recovered 1 | . . 1 Drone Launches . | . . . Drone Recoveries . | . . . Exploration | -11 -10 -10 ------------- Run | Yrd Mat Sub Turns Passed 2312 | 86 1331 895 Spaces Moved 1137 | 57 592 488 Core 12 | 12 . . Treads 815 | . 442 373 Legs . | . . . Wheels 310 | 45 150 115 Hover . | . . . Flight . | . . . Fastest Speed 50 | 50 80 125 Average Speed 141 | 73 139 151 Slowest Speed 160 | 80 160 160 Overloaded Moves . | . . . Propulsion Burnouts . | . . . Robots Hopped . | . . . Cave-ins Triggered . | . . . Exploration Rate (%) 40 | 4 86 32 Regions Visited 2 Branch Regions 1 Pre-discovered Areas 1 | . . 1 Known Exits Taken 1 | . 1 . Unknown Exits Taken 1 | 1 . . Scrap Searched . | . . . Spaces Dug 2 | . 2 . Terrain Destroyed 3 | . 3 . Melee 2 | . 2 . Projectile 1 | . 1 . AOE . | . . . Terrain Rammed . | . . . Walls Destroyed . | . . . Machines Disabled . | . . . Actions | -11 -10 -10 --------- Run | Yrd Mat Sub Total 1646 | 86 1008 552 Wait 333 | . 329 4 Move 1135 | 56 591 488 Hop . | . . . Pick Up 36 | 14 17 5 Fast Attach . | . . . Attach 12 | 7 . 5 Detach . | . . . Swap 12 | . 10 2 Drop 12 | 1 9 2 Fire 98 | 8 47 43 Melee 8 | . 5 3 Ram . | . . . Kick . | . . . Crush . | . . . Escape Stasis . | . . . Rewire . | . . . Trap . | . . . Miscellaneous . | . . . Route ------- -11/Scrapyard -10/Materials (discovered 6 exits: *Mat x3 / [*Min x2] / *Sub) -10/Subcaves (discovered 3 exits: *Mat x2 / Rec) History --------- Turn | Location | Event 10 | -11/Scrapyard | Discovered new exit (range 16) 87 | -11/Scrapyard | Entered Materials 260 | -10/Materials | Discovered new exit (range 10) 315 | -10/Materials | Build established: Mutant 482 | -10/Materials | Discovered new exit (range 10) 492 | -10/Materials | Discovered new exit (range 16) 612 | -10/Materials | Discovered new exit (range 11) 947 | -10/Materials | Identified exit to Materials 947 | -10/Materials | Identified exit to Subcaves 1047 | -10/Materials | Learned 2 Storage zone layouts 1119 | -10/Materials | Learned location of 1 exit from Recycling 1120 | -10/Materials | Central database locked down 1418 | -10/Materials | Entered Subcaves 1419 | -10/Subcaves | Identified exit to Materials 1419 | -10/Subcaves | Identified exit to Recycling 1710 | -10/Subcaves | Learned location of Zion (-7) 1710 | -10/Subcaves | Met a Zionite searching for "candidates" 2086 | -10/Subcaves | Ambushed by Subdweller buried in earth 2141 | -10/Subcaves | Lost 3 parts (2n1w) 2274 | -10/Subcaves | Ambushed by research squad 2274 | -10/Subcaves | Core integrity fell below 50% 2305 | -10/Subcaves | Core integrity fell below 20% 2313 | -10/Subcaves | Destroyed by H-55 Commando with Assault Rifle Last Messages --------------- 02292_ Penetrated by Slug. 02292_ Lgt. Cannon destroyed. 02293_ Shock Rifle fries itself beyond repair. 02294_ Gravmag System fries itself beyond repair. 02295_ Penetrated by Slug. 02295_ Lgt. Treads destroyed. 02297_ Shock Rifle fries itself beyond repair. 02298_ Slug penetrates Wall. 02298_ Wheel destroyed. 02298_ Penetrated by Slug. 02302_ Acquired 2 matter. 02303_ Acquired 4 matter. 02304_ Penetrated by Slug. 02310_ Slug penetrates Wall. 02312_ H-55 Commando suffers critical hit (Smash). 02312_ Destroyed Lgt. Nuclear Core. 02312_ H-55 Commando system corrupted by crushing effect. Map ----- +----------------------------------------------------+ | ?????????????????????????????????????????????????? | | ????????????#####??????????????#?????????????????? | | ???????????## ##???????????# ???????????????? | | ???????????# ??????????# ? ??????????????? | | ???????????# ?????###?? ## ??????????????? | | ??????????## #?????# ### ??????????????? | | ??????????# #????## ??????????????? | | ##????????# #????# ????????????????? | | ""#####???### #???## #??????????????????? | | "" ##????## #??## #???????????????????? | | """"#?????# #### #????????????????????? | | "##????# #?????????????????????? | | "#????### ##??????####??????????? | | "###????## ####?## ##?###?????? | | ###???# ### ### #?????# | | ##??# * ### ## ## ##??##" | | *#### ! #?## #?# ### | | #??# ##?# | | % ######??# ##### ## | | ##### ## #???????# #### | | ##???#### #???????# | | """###??????? #???????# | | ###???????? #??###### ## | | " &""##???????# #??#%% ## # ## ### | | " "" #??????? ??#h h## #### #?? | | "" " #??????# ??# @ #??# ### | | " ## ##??????# ###?# ###?## | | ## #???????# ## ???## #??## # | | ## #???????##?# ???# #### #### | | % # ??????????# ??# ## ## #### #??? | | # ###"" ?????????# ### #??##??? | | ###??"" %????????# # ## #?# ####??????? | | ?????"" ???????##?# ### #?# #####?????????? | | ?????#"" ?????????# ??# ?## #?????????????? | | ???????? ????????# ##?? #?###?????????????? | | ???????? ????????# #???? ##?????????????????? | | ????????? ????????###???? #??????????????????? | | ??????????????????????????# ##??????????????????? | | ??????????????????????????###????????????????????? | | ?????????????????????????????????????????????????? | | ?????????????????????????????????????????????????? | | ##???????????????????????????????????????????????? | | ##?###??????????????????????????????????????????? | | ### #??????????????????????????????????????????? | | ## #####??????????????????????????????????????? | | ## #??????????????????????????????????????? | | ### #??????????????????????????????????????? | | #?# ##??????????????????????????????????????? | | #?### #####???????????????????????????????????? | | #??## ## #???????????????????????????????????? | +----------------------------------------------------+ Best States ------------- Heat Dissipation 25 Energy Generation 12 Energy Capacity 265 Matter Stores 300 Matter Capacity 300 Sight Range 16 Terrain Scan Density 10 Resistance: KI 20 Resistance: TH 20 Resistance: EX 20 Resistance: EM 20 Resistance: I 20 Resistance: S 20 Resistance: P 20 Evasion (%) 50 Targeting Accuracy 5 Recoil Reduction 2 Offensive Hacking 10 Item Schematics ----------------- None Robot Schematics ------------------ M-13 Machinist | -10/Materials | Hacked Fabricated ------------ Nothing Alien Tech Used ----------------- None Achievements -------------- None Challenges ------------ None Game ------ Seed TowerCombatAutobeam Manual? 0 Play Time 00:15:03 Cumulative 577.2 hours Start 2024.08.09 @ 23:24:40 End 2024.08.09 @ 23:38:28 Sessions 1 Manual Loads 0 Difficulty Adventurer Special Mode None Game No. 111 Rogue 0 Adventurer 111 Explorer 0 Win Type - Total 7 Types 4/0/1/2/0/0/0/0/0 Lore% 65 Gallery% 79 Achievement% 70 Wizard Run 0 Options --------- Layout 2 ASCII 0 Keyboard 0 Movement Mouse Keybinds 0 Fullscreen 1 Font 24/Smallcaps Map View 50x49 Zoom Use 13% Tactical HUD 1 Map Filters NONE Filters NONE Steam 1 RUN: 1107fa7c-803d-4345-b603-2ce68bc40807